[Event "SixDays Budapest January-GM 2023"]
[Site "Budapest"]
[Date "2023.01.28"]
[Round "9.3"]
[White "Can, Isik"]
[Black "Hacker, Jonas"]
[Result "1-0"]
[ECO "B47"]
[WhiteElo "2488"]
[BlackElo "2446"]
[Annotator "TA"]
[PlyCount "131"]
[EventDate "2023.01.23"]
[EventType "tourn"]
[EventCountry "HUN"]
[SourceTitle "playchess.com"]
[Source "ChessBase"]
[SourceQuality "1"]
[TimeControl "5400+30"]

{[%evp 17,131,18,30,17,30,32,26,25,25,16,10,19,22,19,35,25,33,34,31,37,22,25,60,23,175,162,170,138,182,172,379,376,368,370,362,360,268,279,291,285,375,368,379,368,393,393,393,393,380,385,381,354,390,375,608,608,649,535,842,842,734,696,1252,1252,1252,1218,1036,581,1253,1253,1177,1146,999,895,838,854,1672,1158,887,1066,2082,1561,1554,1439,982,0,0,0,29970,29971,2193,2705,29972,29973,29979,29980,29982,29983,29983,29984,29984,29985,29985,29986,29986,29987,29987,29988,29988,29989,29989,29990,29990,29991,29991,29992]} 1. e4 {[%emt 0:00:36]} c5 {[%emt 0:00:05]} 2. Nf3 {[%emt 0:00:05]} e6 {[%emt 0:00:05]} 3. d4 {[%emt 0:00:03]} cxd4 {[%emt 0:00:06]} 4. Nxd4 {[%emt 0:00:02]} Nc6 {[%emt 0:00:55]} 5. Nc3 {[%emt 0:00:06]} Qc7 {[%emt 0:00:35]} 6. f4 {[%emt 0:00:09]} a6 {[%emt 0:00:19]} 7. Nxc6 {[%emt 0:00:04]} Qxc6 {[%emt 0:00:29]} 8. Bd3 {[%emt 0:00:06]} b5 {[%emt 0:00:21]} 9. Qe2 {[%emt 0:00:06]} Bb7 {[%emt 0:00:17]} 10. a3 {[%emt 0:00:34] B47: Sicilian: Taimanov: 5 Nc3 Qc7 6 f4, 6 g3 and 6 Be2.} Bc5 {[%emt 0:01:07]} 11. Bd2 {[%emt 0:00:24]} Ne7 {[%emt 0:01:36][%cal Of7f5]} 12. O-O-O {[%emt 0:08:07] White has an edge.} O-O {[%emt 0:00:59]} 13. h4 $1 {[%emt 0:00:05][%mdl 4] is currently scoring better than 13.Qh5.} (13. Rhe1 {is interesting.} Rac8 14. Qh5 b4 15. axb4 Bxb4 16. Nd5) 13... b4 {[%emt 0:06:29]} 14. axb4 {[%emt 0:00:23]} Bxb4 {[%emt 0:00:06]} 15. h5 {[%emt 0:03:09]} a5 {[%emt 0:10:37] [#]} 16. Rh3 $146 {[%emt 0:10:12][%cal Bh1h3,Bh3g3,Bg3g5,Bg5d5][%mdl 32]} (16. h6 $5 g6 $8 17. Rhe1 $11) ({Predecessor:} 16. h6 g6 17. Qf2 f6 18. Rh3 Ba6 19. Qd4 Bc5 20. Qa4 Rfb8 21. Qxc6 Nxc6 22. Bxa6 Rxa6 {1-0 Adams,M (2692)-Fedorchuk,S (2621) Bundesliga 1920 2019 (9.5)}) 16... a4 {[%emt 0:07:19] Strongly threatening ...a3.} 17. Nb5 {[%emt 0:13:19]} Bxd2+ {[%emt 0:21:06]} 18. Qxd2 {[%emt 0:00:09]} Ba6 {[%emt 0:01:50]} 19. Qb4 {[%emt 0:00:44]} Rab8 {[%emt 0:07:35][%cal Of8c8]} 20. Rg3 {[%emt 0:07:27]} (20. Qxe7 {feels hotter.} Bxb5 21. Rg3 Bxd3 22. Rdxd3 a3 23. b3) 20... Ng6 {[%emt 0:06:11]} (20... Rxb5 $2 21. Bxb5 (21. Qxe7 Rxh5 22. Bxa6 Qxa6 $11) 21... Bxb5 22. Qxe7 Qxe4 23. Qf6 $18) (20... Rfe8 $11 21. h6 (21. Qd4 e5 $17) 21... Bxb5 22. Rxg7+ Kh8) 21. hxg6 $18 {[%emt 0:02:11]} Bxb5 {[%emt 0:01:32] [#]} 22. gxf7+ $1 $40 {[%emt 0:22:12][%mdl 128] White attacks with force.} Rxf7 {[%emt 0:02:25][%cal Oc6c7] [#]} 23. Rg5 $1 {[%emt 0:00:05]} d5 $2 {[%emt 0:05:34]} (23... e5 {was worth a try.}) 24. exd5 {[%emt 0:01:00]} exd5 {[%emt 0:00:40] [#]} 25. Rxd5 $3 {[%emt 0:01:12][%mdl 512]} Bxd3 {[%emt 0:01:50][%csl Gd3][%cal Rc6c2]} 26. Qxb8+ {[%emt 0:00:05]} Rf8 {[%emt 0:00:03] [#]} 27. Qxf8+ $3 {[%emt 0:00:04][%mdl 512]} Kxf8 {[%emt 0:00:02][%csl Gd3][%cal Rc6c2]} 28. R1xd3 {[%emt 0:00:07][%mdl 4096] Endgame KQ-KRR} (28. R5xd3 Qxg2 29. Rd5 Qg4 $14) 28... Qc4 {[%emt 0:01:28]} 29. Kb1 {[%emt 0:03:50]} h6 {[%emt 0:01:38]} 30. R5d4 {[%emt 0:05:08]} Qb5 {[%emt 0:01:28]} 31. g3 {[%emt 0:01:12]} Kf7 {[%emt 0:00:47]} 32. Rd7+ {[%emt 0:02:06]} Kg6 {[%emt 0:00:47]} 33. Rc7 {[%emt 0:04:41]} Kh5 {[%emt 0:04:26]} 34. Ka2 {[%emt 0:02:06]} ({Inferior is} 34. Rxg7 a3 35. Rb3 (35. Rxa3 Qf1+ 36. Ka2 Qc4+ 37. Rb3 Qa6+ 38. Ra3 Qc4+ 39. Kb1 Qf1+ 40. Ka2 Qc4+ $11) 35... a2+ 36. Ka1 Qf1+ 37. Kxa2 Qa6+ 38. Ra3 Qc4+ 39. Kb1 Qf1+ 40. Ka2 Qc4+ 41. Rb3 (41. Kb1 Qf1+ 42. Ka2 Qc4+ $11) 41... Qa6+ 42. Ra3 Qc4+ $11) 34... g5 {[%emt 0:06:17]} 35. fxg5 {[%emt 0:00:12]} hxg5 {[%emt 0:00:02]} (35... Kxg5 36. Rd4 Kg6) 36. Ka3 {[%emt 0:01:21]} Kg4 {[%emt 0:00:24]} 37. Rcc3 {[%emt 0:00:18]} Kh3 {[%emt 0:00:45]} 38. Rd4 {[%emt 0:00:13]} Qf1 {[%emt 0:01:31] Wards off Rdc4} 39. Rxa4 {[%emt 0:00:26] Ka2 would be deadly.} Qd1 {[%emt 0:02:02]} 40. Ka2 {[%emt 0:01:00]} Qd2 {[%emt 0:00:49]} 41. Rac4 {[%emt 0:00:11]} Qd6 {[%emt 0:00:36]} 42. b4 {[%emt 0:01:04]} Qa6+ {[%emt 0:00:14]} 43. Kb2 {[%emt 0:00:14]} Qb5 {[%emt 0:01:03]} 44. Rd4 {[%emt 0:00:26]} Qe5 {[%emt 0:00:16]} 45. Rcd3 {[%emt 0:00:07]} Qe1 {[%emt 0:01:45]} 46. b5 {[%emt 0:00:46]} Qe5 {[%emt 0:00:19]} 47. c4 {[%emt 0:00:04][%cal Bc2c4,Bc4c5][%mdl 32]} Qe1 {[%emt 0:01:00]} 48. Kb3 {[%emt 0:03:07] aiming for Ka4.} g4 {[%emt 0:02:39]} 49. c5 {[%emt 0:00:45]} Qa5 {[%emt 0:02:10]} 50. Rb4 {[%emt 0:00:22] Hoping for Rdd4.} Qa1 {[%emt 0:01:00]} 51. b6 $2 {[%emt 0:06:13]} (51. Kc4 $18 {And now b6 would win.} Qc1+ 52. Kd5 Qg5+ 53. Kc6 Qg6+ 54. Rd6 Qe8+ 55. Kb7 Kxg3 56. Rdd4 Qf7+ 57. Kb6) 51... Qb1+ $1 $11 {[%emt 0:00:20]} 52. Kc3 {[%emt 0:00:42]} Qa1+ {[%emt 0:01:46][%mdl 8192]} (52... Qc1+ $11 53. Kb3 Qb1+ 54. Ka4 Qxd3) 53. Kc4 {[%emt 0:00:26]} Qa6+ {[%emt 0:00:27]} 54. Kd4 {[%emt 0:00:14] Threatening mate with b7.} Qa1+ {[%emt 0:00:36]} 55. Kd5 {[%emt 0:00:16] White mates.} Qa2+ {[%emt 0:00:37]} 56. Rbb3 {[%emt 0:00:02]} Qa4 {[%emt 0:00:26]} 57. c6 {[%emt 0:00:34]} Qa5+ {[%emt 0:00:21]} 58. Kd6 {[%emt 0:00:02]} Qa8 {[%emt 0:00:21]} 59. c7 {[%emt 0:00:56]} Qe8 {[%emt 0:00:26]} 60. b7 {[%emt 0:00:29]} Qg6+ {[%emt 0:00:32]} 61. Kc5 {[%emt 0:00:42]} Qf5+ {[%emt 0:00:30]} 62. Kb6 {[%emt 0:00:07]} Qf2+ {[%emt 0:00:17]} 63. Re3 {[%emt 0:00:16]} Qf6+ {[%emt 0:00:41]} 64. Ka7 {[%emt 0:00:09]} Qd4+ {[%emt 0:00:06]} 65. Kb8 {[%emt 0:00:08]} Qd6 {[%emt 0:00:01]} 66. Rbd3 {[%emt 0:00:09] A superb game by Can.   Weighted Error Value: White=0.11 (very precise) /Black=0.41} 1-0

[Event "SixDays Budapest January-GM 2023"]
[Site "Budapest"]
[Date "2023.01.28"]
[Round "9.5"]
[White "Berczes, David"]
[Black "Chen, Qi b"]
[Result "1/2-1/2"]
[ECO "D43"]
[WhiteElo "2436"]
[BlackElo "2484"]
[Annotator "TA"]
[PlyCount "37"]
[EventDate "2023.01.23"]
[EventType "tourn"]
[EventCountry "HUN"]
[SourceTitle "playchess.com"]
[Source "ChessBase"]
[SourceQuality "1"]
[TimeControl "5400+30"]

{[%evp 17,19,-7,-6,-10]} 1. c4 {[%emt 0:12:26]} e6 {[%emt 0:00:40]} 2. Nf3 {[%emt 0:00:17]} d5 {[%emt 0:00:28]} 3. d4 {[%emt 0:00:41]} Nf6 {[%emt 0:00:08]} 4. Nc3 {[%emt 0:00:29]} c6 {[%emt 0:01:05]} 5. cxd5 {[%emt 0:00:37]} exd5 {[%emt 0:00:09]} 6. Bg5 {[%emt 0:00:07]} Be7 {[%emt 0:00:36]} 7. e3 {[%emt 0:00:20]} Bf5 {[%emt 0:00:33]} 8. Bd3 {[%emt 0:00:08]} Bxd3 {[%emt 0:00:07]} 9. Qxd3 {[%emt 0:00:07]} O-O {[%emt 0:00:12]} 10. O-O {[%emt 0:00:23] [#] A rather calm draw.  D35: Queen's Gambit Declined: Exchange Variation.} {Predecessor:} Nbd7 $146 11. Rac1 Ne4 12. Bxe7 Qxe7 13. Qc2 f5 14. Ne2 g5 15. Rce1 Rf6 16. Nd2 Re8 17. Nc1 Rh6 18. Nd3 g4 19. g3 {0-1 Doric,D (2457)-Sanal,V (2595) EU-Cup 37th Mayrhofen 2022 (6.2)} 1/2-1/2